bitfinex/quotes_ETHUSD_20241109
["timestamp","ask_amount","ask_price","bid_price","bid_amount"]
[1731173019206,0.7837,3009.6,3008.6,3.0664596]
[1731173019365,0.05407959,3009.3,3008.7,0.59587866]
[1731173019697,0.05400907,3009.2,3008.7,0.59587866]
[1731173020194,0.7837,3009.6,3008.7,0.59587866]
[1731173020553,0.05422117,3009.5,3008.7,0.59587866]
[1731173020788,0.7837,3009.4,3008.8,0.35958787]
[1731173021001,0.7837,3009.4,3008.9,0.06645784]
[1731173021253,0.31299872,3010.9,3008.9,0.06645784]
[1731173021254,0.05408015,3009.3,3008.9,0.82605784]
[1731173021552,0.7837,3009.7,3008.6,0.01]
[1731173021757,0.7837,3009.7,3008.4,2.78826827]
[1731173021758,0.05400984,3009.2,3008.7,0.301]
[1731173021992,0.7837,3009.7,3008.4,0.01]
[1731173022295,0.05429187,3009.6,3008.4,0.01]
[1731173023603,0.05429187,3009.6,3008.5,0.7596]
[1731173023783,0.05429187,3009.6,3008.6,0.06645124]
[1731173024151,0.05429187,3009.6,3008.5,0.7596]
[1731173024350,0.05429187,3009.6,3008.6,0.06645109]
[1731173025204,2.84256014,3009.6,3008.6,0.06645109]
[1731173025502,2.84256014,3009.6,3008.2,3.0]
[1731173025503,0.85848902,3009.5,3008.1,17.088465]
[1731173025854,0.05415458,3009.4,3008.1,17.088465]
[1731173026056,0.7837,3009.3,3008.1,17.088465]
[1731173026580,0.83771356,3009.2,3008.1,17.088465]
[1731173026796,0.55,3009.1,3008.2,0.06646205]
[1731173026953,0.7837,3009.0,3008.2,0.06646205]
[1731173027154,0.7837,3009.0,3008.1,15.0]
[1731173027155,0.83757184,3009.0,3008.1,15.0]
[1731173027357,1.3337,3008.7,3008.1,15.0]
[1731173027595,0.7837,3008.5,3008.1,15.0]
[1731173027996,0.0534459,3008.4,3008.2,0.06647611]
[1731173028370,0.7837,3008.8,3008.2,0.06647611]
[1731173028585,0.7837,3009.3,3008.3,0.7596]
[1731173028785,0.7837,3009.3,3008.4,0.06646357]
[1731173029100,0.7837,3009.1,3008.4,0.30664636]
[1731173029296,0.7837,3009.1,3008.2,3.0]
[1731173029595,0.8161,3008.8,3008.1,15.0]
[1731173029774,3.33826827,3008.9,3008.1,15.0]
[1731173029775,0.07478902,3008.7,3008.1,15.0]
[1731173029982,0.8161,3008.6,3008.1,15.0]
[1731173030370,0.05350203,3008.5,3008.2,0.06648017]
[1731173030639,0.05350203,3008.5,3008.2,1.50664802]
[1731173030791,0.05350203,3008.5,3008.2,3.0]
[1731173032181,0.8161,3008.6,3008.2,3.0]
[1731173033400,0.8161,3008.6,3008.2,6.32]
[1731173034389,0.8161,3008.6,3008.3,0.0664756]
[1731173034593,0.8161,3008.6,3008.2,6.32]
[1731173034768,0.8161,3008.6,3008.3,2.132]
[1731173036499,0.8161,3009.3,3008.4,3.826]
[1731173037004,0.05392874,3009.2,3008.5,0.06646168]
[1731173037211,0.05392874,3009.2,3008.4,3.826]
[1731173037370,0.8161,3009.3,3008.5,0.5958]
[1731173037800,0.05393201,3009.2,3008.5,0.5958]
[1731173038006,0.05393201,3009.2,3008.6,0.0664611]
[1731173038164,0.8161,3009.3,3008.7,0.06645697]
[1731173038368,0.8161,3009.3,3008.5,0.5958]
[1731173038566,0.05393246,3009.2,3008.6,0.44218]
[1731173039063,0.8161,3009.3,3008.6,0.44218]
[1731173039268,0.05393246,3009.2,3008.6,0.44218]
[1731173039715,0.8161,3009.3,3008.6,0.44218]
[1731173040116,0.05393246,3009.2,3008.6,0.44218]
[1731173040275,0.8161,3009.3,3008.6,0.44218]
[1731173040769,0.05393561,3009.2,3008.6,0.44218]
[1731173041109,0.8161,3009.3,3008.6,0.44218]
[1731173041320,0.0538651,3009.1,3008.6,0.44218]
[1731173041486,0.05393561,3009.2,3008.6,0.44218]
[1731173041669,0.8161,3009.3,3008.6,0.44218]
[1731173041869,0.05394171,3009.2,3008.6,0.44218]
[1731173042092,0.8161,3009.3,3008.6,0.44218]
[1731173042517,0.05394239,3009.2,3008.6,0.44218]
[1731173042672,0.05394239,3009.2,3008.3,2.132]
[1731173042877,0.89088902,3009.3,3008.3,2.132]
[1731173043277,0.05394183,3009.2,3008.3,2.132]
[1731173043777,0.89088902,3009.3,3008.3,2.132]
[1731173043984,0.07478902,3009.2,3008.3,2.132]
[1731173044207,0.12873085,3009.2,3008.4,3.5452]
[1731173044411,0.07478902,3009.2,3008.4,3.5452]
[1731173045511,0.8161,3009.3,3008.4,3.5452]
[1731173045874,0.05394014,3009.2,3008.5,0.06646583]
[1731173046115,0.8161,3009.3,3008.4,3.5452]
[1731173046322,0.8161,3009.3,3008.5,0.56772]
[1731173046515,0.05394014,3009.2,3008.5,0.56772]
[1731173046983,0.8161,3009.3,3008.6,0.06646586]
[1731173047185,0.8161,3009.3,3008.5,0.56772]
[1731173047368,0.05394014,3009.2,3008.5,0.56772]
[1731173047776,0.8161,3009.6,3008.7,0.826]
[1731173047989,0.8161,3009.6,3008.8,0.06645486]
[1731173048271,0.05415268,3009.5,3008.8,0.06645486]
[1731173048477,0.05415268,3009.5,3008.7,0.826]
[1731173049698,0.8161,3009.9,3008.7,0.826]
[1731173049924,0.04883643,3009.4,3008.7,0.826]
[1731173050226,0.8161,3009.9,3008.7,0.826]
[1731173050438,0.04876592,3009.3,3008.7,0.826]
[1731173050589,0.04876592,3009.3,3008.8,3.8214]
[1731173050787,35.0,3010.0,3009.0,0.8214]
[1731173050987,0.04869541,3009.2,3009.0,0.8214]
[1731173051182,35.0,3010.0,3009.0,0.8214]
[1731173051617,0.04918891,3009.9,3009.0,0.8214]
[1731173058158,0.04918891,3009.9,3009.3,0.8214]
[1731173060711,12.36,3011.2,3009.3,0.8214]
[1731173060885,1.32837,3013.2,3010.8,2.78826827]
[1731173060886,0.9345537,3011.8,3010.8,2.78826827]
[1731173061162,0.9345537,3011.8,3010.1,2.40269476]
[1731173061163,0.9345537,3011.8,3010.9,1.39333825]
[1731173061365,0.9345537,3011.8,3010.9,0.8214]
[1731173061661,0.9345537,3011.8,3010.6,1.24]
[1731173061859,0.9345537,3011.8,3010.6,2.0614]
[1731173062228,0.7966,3011.6,3010.6,1.24]
[1731173062444,0.7966,3011.6,3010.3,0.8214]
[1731173062445,0.07478902,3011.5,3010.3,0.8214]
[1731173062642,0.7966,3011.4,3010.3,0.8214]
[1731173062831,0.07478902,3011.3,3010.1,5.39269476]
[1731173063859,0.7966,3011.4,3010.1,8.18096303]
[1731173064021,0.7966,3011.4,3010.1,9.79285616]
[1731173064366,0.7966,3011.4,3010.2,0.78104891]
[1731173064518,0.7966,3011.4,3010.2,3.78104891]
[1731173065624,0.7966,3011.4,3010.4,2.78826827]
[1731173065824,0.7966,3011.4,3010.7,2.78826827]
[1731173066158,0.7966,3011.4,3010.6,0.8214]
[1731173068018,0.7966,3011.4,3010.7,0.84746219]
[1731173068644,0.7966,3011.4,3010.6,0.8214]
[1731173069588,0.7966,3011.4,3010.6,3.8214]
[1731173070687,0.7966,3011.4,3010.2,3.7642]
[1731173071189,0.03988762,3011.3,3010.2,3.7642]
[1731173071401,0.11467664,3011.3,3010.2,3.7642]
[1731173071556,0.11467664,3011.3,3010.3,0.06642093]
[1731173071891,0.7966,3011.4,3010.4,3.0]
[1731173072182,0.7966,3011.4,3010.5,0.84746985]
[1731173072397,0.7966,3011.4,3010.5,0.78104891]
[1731173072601,3.0,3012.5,3010.5,0.78104891]
[1731173072602,0.7673,3013.3,3011.4,3.0]
[1731173072739,0.7673,3013.3,3011.3,3.86971558]
[1731173072740,0.01,3013.2,3011.3,3.86971558]
[1731173073088,0.7673,3013.1,3011.3,3.86971558]
[1731173073282,0.7673,3012.9,3011.3,3.86971558]
[1731173073888,0.7673,3012.9,3011.4,0.86971558]
[1731173074061,0.7673,3012.9,3011.3,3.0]
[1731173075045,0.7673,3012.9,3011.3,3.52977779]
[1731173075344,0.7673,3012.9,3011.4,0.52977779]
[1731173076000,0.7673,3012.9,3011.3,3.0]
[1731173076795,0.55,3012.8,3011.3,3.0]
[1731173077099,0.7673,3012.7,3011.3,3.0]
[1731173078103,0.7673,3012.7,3011.4,0.0663926]
[1731173078592,0.7673,3012.7,3011.4,0.59617039]
[1731173078749,0.7673,3012.7,3011.5,0.7642]
[1731173078953,0.7673,3012.7,3011.6,3.0]
[1731173079403,0.7673,3014.0,3012.6,0.7642]
[1731173079606,0.7673,3014.0,3012.9,3.0]
[1731173079753,0.80210918,3013.9,3012.9,3.0]
[1731173079949,0.80210918,3013.9,3012.6,0.7642]
[1731173079950,1.12633775,3013.8,3012.6,0.7642]
[1731173080163,1.15875601,3013.8,3012.6,0.7642]
[1731173080566,0.7673,3013.7,3012.1,0.7642]
[1731173080784,0.79964796,3013.7,3012.1,0.7642]
[1731173080997,0.7673,3013.7,3012.1,0.7642]
[1731173081696,0.7673,3013.7,3012.0,3.0]
[1731173081697,0.7673,3013.7,3012.4,0.7642]
[1731173081897,0.03227765,3013.6,3012.4,0.7642]
[1731173082352,0.03227765,3013.6,3012.5,0.06637189]
[1731173082558,0.7673,3013.5,3012.3,2.39269476]
[1731173082991,0.03213702,3013.4,3012.3,2.39269476]
[1731173083261,0.03213702,3013.4,3012.4,0.06637616]
[1731173083661,0.7673,3013.5,3012.4,0.06637616]
[1731173084312,0.03214782,3013.4,3012.4,0.06637616]
[1731173084601,0.03214782,3013.4,3012.5,0.7642]
[1731173085161,0.03214782,3013.4,3012.6,0.06637381]
[1731173086005,0.03214782,3013.4,3012.6,0.0663731]
[1731173086297,0.03214782,3013.4,3012.5,0.7642]
[1731173086513,0.03214782,3013.4,3012.6,0.06636905]
[1731173087483,0.03214782,3013.4,3012.6,3.06636905]
[1731173088264,0.7673,3013.5,3012.6,3.06636905]
[1731173088463,0.7673,3013.5,3012.6,3.0]
[1731173089206,0.7673,3013.5,3012.7,0.06636655]
[1731173089569,0.7673,3013.5,3012.7,0.06636605]
[1731173089764,0.01,3014.3,3012.7,0.06636605]
[1731173089765,0.7534,3014.3,3012.8,2.78826827]
[1731173089968,0.0321612,3013.4,3012.9,3.0]
[1731173090190,0.7534,3014.1,3012.9,3.0]
[1731173092306,0.78598303,3014.0,3012.9,3.0]
[1731173092506,0.78598303,3014.0,3013.1,2.78826827]
[1731173092707,0.78598303,3014.0,3012.9,3.0]
[1731173092708,0.7534,3014.0,3013.5,3.0]
[1731173092913,0.7534,3014.0,3012.9,5.78826827]
[1731173094213,0.7534,3013.8,3012.9,5.78826827]
[1731173094429,0.7534,3013.8,3013.0,0.06636557]
[1731173094606,0.7534,3013.8,3013.5,2.78826827]
[1731173094806,0.7534,3013.8,3013.6,3.06635756]
[1731173095995,0.7534,3013.8,3013.1,0.7965]
[1731173096201,0.7534,3013.8,3013.3,3.0]
[1731173096506,0.7534,3013.8,3013.1,0.7965]
[1731173096507,0.7534,3013.8,3013.5,2.78826827]
[1731173096928,0.7534,3013.8,3013.6,3.0]
[1731173097993,0.7534,3013.8,3013.6,3.06635796]
[1731173098428,0.7534,3013.8,3013.6,3.0]
[1731173098633,0.7534,3014.6,3013.6,3.0]
[1731173098946,0.03295074,3014.5,3013.6,3.0]
[1731173099135,0.7534,3014.4,3013.6,3.0]
[1731173099330,0.7534,3014.4,3013.1,0.7965]
[1731173099544,0.03281019,3014.3,3013.6,3.0]
[1731173099942,0.03281019,3014.3,3013.6,3.06635762]
[1731173100241,0.03281019,3014.3,3014.2,2.78826827]
[1731173100460,0.03281019,3014.3,3013.2,2.78826827]
[1731173100685,0.03281019,3014.3,3012.8,0.30574438]
[1731173100686,0.8301,3014.4,3013.8,3.0]
[1731173101380,0.8301,3014.4,3013.3,5.39269476]
[1731173101583,0.1379537,3014.8,3014.3,2.78826827]
[1731173101804,0.1379537,3014.8,3013.7,3.0]
[1731173101805,0.8301,3014.7,3013.8,0.8074]
[1731173101943,0.86319443,3014.7,3013.8,0.06634361]
[1731173102148,0.86319443,3014.7,3013.5,0.8074]
[1731173102149,0.8301,3014.7,3014.1,3.0]
[1731173102449,0.8301,3014.7,3014.1,3.06634758]
[1731173102883,0.8301,3014.7,3013.9,2.78826827]
[1731173103185,0.8301,3014.7,3014.0,3.0]
[1731173103389,0.8301,3014.7,3014.1,0.06635266]
[1731173103557,0.8301,3014.7,3014.2,2.78826827]
[1731173104545,0.8301,3014.7,3014.3,3.0]
[1731173105991,0.1379537,3014.8,3014.5,2.78826827]
[1731173106201,0.1379537,3014.8,3014.6,3.0]
[1731173106396,0.03310261,3014.7,3014.6,3.0]
[1731173106551,0.1379537,3014.8,3014.6,3.0]
[1731173106894,0.8301,3014.7,3014.3,3.0]
[1731173107252,0.1379537,3014.8,3014.4,0.55]
[1731173107595,0.1379537,3014.8,3014.3,3.0]
[1731173107949,0.1379537,3014.8,3014.5,2.78826827]
[1731173110991,0.1379537,3014.8,3014.3,3.0]
[1731173111164,0.1379537,3014.8,3013.9,0.8301]
[1731173111350,0.7957,3014.7,3014.3,2.78826827]
[1731173111551,0.7957,3014.7,3014.1,3.0]
[1731173111861,0.7957,3014.7,3014.3,2.78826827]
[1731173112084,0.7957,3014.7,3014.4,3.0]
[1731173112282,0.7957,3014.7,3014.0,2.78826827]
[1731173112499,0.7957,3014.7,3014.1,3.0]
[1731173113404,0.7957,3014.7,3014.0,2.78826827]
[1731173113405,0.7957,3014.7,3013.4,3.0]
[1731173113584,0.7957,3014.7,3013.9,2.78826827]
[1731173113911,0.7957,3014.7,3014.0,3.0]
[1731173114119,0.7957,3014.7,3013.9,2.78826827]
[1731173114408,0.8057,3014.7,3013.3,2.39269476]
[1731173114608,0.8057,3014.7,3013.7,2.78826827]
[1731173115017,0.8057,3014.7,3013.0,0.8325]
[1731173115174,0.01,3014.5,3013.4,2.78826827]
[1731173115512,0.01,3014.5,3013.1,2.78826827]
[1731173115513,0.7957,3014.4,3013.1,2.78826827]
[1731173115870,0.7957,3014.2,3013.1,2.78826827]
[1731173116067,0.8057,3014.2,3013.1,2.78826827]
[1731173116516,0.7957,3014.0,3013.1,2.78826827]
[1731173116719,0.7957,3014.0,3012.8,2.78826827]
[1731173116882,0.7957,3014.0,3012.8,2.85464099]
[1731173117088,0.7957,3014.0,3012.7,1.17844878]
[1731173117089,0.7957,3014.0,3012.7,0.34594878]
[1731173117294,0.7957,3014.0,3012.8,0.06637273]
[1731173117295,0.8057,3014.0,3012.8,0.06637273]
[1731173117601,0.8282214,3013.9,3012.5,2.78826827]
[1731173118103,0.8282214,3013.9,3012.2,0.8325]
[1731173118411,0.8282214,3013.9,3012.5,2.78826827]
[1731173118918,0.8282214,3013.9,3012.6,3.06637807]
[1731173119086,0.8282214,3013.9,3012.8,2.78826827]
[1731173119271,0.8282214,3013.9,3012.9,3.0]
[1731173119468,0.7957,3013.9,3012.9,3.0]
[1731173119679,0.02,3014.0,3012.9,3.0]
[1731173119680,0.7957,3013.7,3012.9,3.0]
[1731173121515,0.7957,3013.7,3012.5,0.46857816]
[1731173121516,0.1379537,3014.8,3014.0,0.55]
[1731173121715,0.1379537,3014.8,3014.3,3.0]
[1731173122275,0.7957,3014.7,3014.3,3.0]
[1731173122805,0.7957,3014.7,3013.9,3.0]
[1731173123121,0.7957,3014.7,3013.6,3.0]
[1731173123278,0.7957,3014.7,3013.3,0.8325]
[1731173123613,0.7957,3014.7,3013.6,3.0]
[1731173123774,0.7957,3014.7,3013.6,3.06635722]
[1731173123973,0.7957,3014.7,3013.6,0.06635722]
[1731173124231,0.7957,3014.7,3013.6,3.0]
[1731173124512,0.7957,3014.7,3013.6,3.06635723]
[1731173125825,0.7957,3014.7,3013.9,3.0]
[1731173127591,0.5457,3014.7,3013.9,3.0]
[1731173128432,0.5457,3014.7,3013.6,0.55]
[1731173128933,0.1379537,3014.8,3013.7,0.06635467]
[1731173129429,0.03981139,3014.7,3013.7,0.06635467]
[1731173129729,0.1379537,3014.8,3013.5,3.0]
[1731173130023,0.03981139,3014.7,3013.8,3.0]
[1731173130230,0.02,3014.6,3013.1,2.78826827]
[1731173130583,0.03961976,3014.5,3013.1,2.78826827]
[1731173130787,0.7951,3014.4,3013.1,2.78826827]
[1731173130989,0.7951,3014.4,3013.4,2.78826827]
[1731173131488,0.7951,3014.4,3013.5,3.0]
[1731173132830,0.83462393,3014.4,3013.5,3.0]
[1731173133027,0.01,3014.7,3013.7,2.78826827]
[1731173133237,0.7951,3014.6,3013.7,2.78826827]
[1731173133508,0.84363393,3014.6,3013.7,2.78826827]
[1731173133707,0.7951,3014.6,3013.7,2.78826827]
[1731173134022,0.7951,3014.6,3013.5,3.0]
[1731173135553,0.8051,3014.6,3013.5,3.0]
[1731173138409,0.02,3014.4,3013.1,3.42259228]
[1731173138612,0.02,3014.4,3011.8,0.02]
[1731173138613,0.01,3014.2,3012.7,2.78826827]
[1731173138816,0.7951,3014.1,3012.8,0.06637586]
[1731173139349,0.7951,3014.1,3013.0,2.78826827]
[1731173139987,0.7951,3014.1,3013.1,3.0]
[1731173140531,0.7951,3014.1,3012.7,2.78826827]
[1731173140859,0.01,3014.0,3012.8,3.0]
[1731173141037,0.8051,3014.0,3012.8,3.0]
[1731173141233,0.8051,3014.0,3012.7,3.0]
[1731173141473,0.01,3014.2,3012.6,2.78826827]
[1731173141474,0.01,3013.8,3012.6,2.78826827]
[1731173141633,0.7951,3013.7,3012.6,2.78826827]
[1731173143180,0.7951,3013.7,3012.7,3.0]
[1731173143698,0.7951,3013.7,3012.7,3.06637937]
[1731173143967,0.7951,3013.7,3012.9,2.78826827]
[1731173146173,0.7951,3013.7,3013.2,2.78826827]
[1731173146388,0.7951,3014.2,3013.5,2.78826827]
[1731173158601,0.7951,3014.2,3013.4,0.0663619]
[1731173158893,0.7951,3014.2,3013.4,3.0]
[1731173160163,0.7951,3014.2,3013.6,2.78826827]
[1731173160791,0.7951,3014.2,3013.3,0.06636119]
[1731173160792,0.7951,3014.2,3013.4,3.0]
[1731173170524,0.7951,3014.2,3013.2,0.7632]
[1731173170705,0.7951,3014.2,3013.5,3.0]
[1731173170905,0.8051,3014.2,3012.7,0.34606908]
[1731173171106,0.7663,3013.6,3012.0,1.38482103]
[1731173171426,0.01,3013.9,3011.9,3.57406827]
[1731173171427,0.7663,3013.4,3012.2,2.78826827]
[1731173172438,0.7663,3013.4,3012.3,3.0]
[1731173175613,0.7663,3013.4,3012.2,3.0]
[1731173175820,0.7663,3013.2,3012.2,3.0]
[1731173176195,0.7663,3013.2,3012.0,3.0]
[1731173176542,0.7663,3013.2,3012.5,2.78826827]
[1731173177200,0.7663,3013.2,3012.6,3.0]
[1731173177406,0.7663,3013.2,3012.6,3.0663799]
[1731173177607,0.7663,3013.2,3012.7,2.78826827]
[1731173177911,0.7663,3013.2,3012.8,3.0]
[1731173178503,0.7663,3013.2,3012.5,3.0]
[1731173178744,0.7663,3013.2,3012.5,3.55]
[1731173179053,0.7663,3013.2,3012.4,2.78826827]
[1731173179054,0.7663,3013.2,3012.4,3.55]
[1731173180424,0.7663,3013.2,3012.4,0.55]
[1731173180633,0.7663,3013.2,3012.4,3.0]
[1731173180828,0.7663,3013.2,3011.9,0.55]
[1731173181003,0.7663,3013.2,3012.0,2.78826827]
[1731173181328,0.7663,3013.2,3012.1,3.31]
[1731173182297,0.7763,3013.2,3012.1,3.31]
[1731173182500,0.7663,3013.2,3012.2,3.0]
[1731173183500,0.7763,3013.1,3012.1,3.31]
[1731173183735,0.7663,3013.1,3012.1,3.31]
[1731173184290,0.7663,3013.1,3012.2,2.78826827]
[1731173185239,0.7763,3013.1,3012.2,2.78826827]
[1731173185429,0.7763,3013.1,3012.1,3.31]
[1731173186345,0.30871893,3013.4,3010.4,0.7858]
[1731173186346,0.7763,3012.7,3010.4,0.7858]
[1731173186499,0.7763,3012.7,3011.2,2.78826827]
[1731173187254,0.01,3012.5,3011.2,2.78826827]
[1731173187562,0.01,3012.5,3010.7,0.7763]
[1731173187563,0.7663,3012.2,3010.9,2.78826827]
[1731173188052,0.01,3012.1,3010.9,2.78826827]
[1731173188252,0.7663,3012.0,3010.4,0.7858]
[1731173188421,0.7663,3012.0,3010.9,2.78826827]
[1731173188621,0.7763,3012.0,3010.6,2.78826827]
[1731173190511,0.7763,3012.0,3010.7,3.0]
[1731173190743,0.7763,3012.0,3010.9,3.0]
[1731173191145,0.7763,3012.0,3010.5,2.78826827]
[1731173191355,0.7763,3012.0,3010.6,3.0]
[1731173192429,0.7763,3012.0,3010.1,3.0]
[1731173192639,0.7763,3012.0,3009.9,1.69921743]
[1731173192640,0.02,3011.7,3010.2,2.78826827]
[1731173192830,0.805,3011.6,3010.2,2.78826827]
[1731173193233,0.01,3011.4,3010.2,2.78826827]
[1731173193531,0.805,3011.3,3010.2,2.78826827]
[1731173194671,0.805,3011.3,3010.3,3.0]
[1731173196169,0.805,3011.3,3010.5,2.78826827]
[1731173196640,0.805,3011.3,3010.6,3.0]
[1731173196965,2.78826827,3012.3,3011.2,3.0]
[1731173196966,0.815,3012.3,3011.2,3.0]
[1731173197630,0.815,3012.3,3010.9,3.0]
[1731173198264,0.815,3012.3,3010.9,3.06641866]
[1731173198677,0.805,3011.6,3009.4,2.10722]
[1731173198832,0.805,3011.6,3010.1,2.78826827]
[1731173199032,0.805,3011.6,3010.4,2.78826827]
[1731173199871,0.805,3011.6,3010.5,3.0]
[1731173200703,0.805,3011.6,3010.8,3.0]
[1731173200875,0.805,3011.6,3010.8,3.06641929]
[1731173201074,0.805,3011.6,3010.9,3.0]
[1731173203415,0.805,3011.6,3010.6,3.0]
[1731173204865,0.805,3011.6,3010.5,0.06642564]
[1731173205201,0.805,3011.6,3010.7,3.0]
[1731173206271,0.805,3011.6,3010.7,3.06642555]
[1731173206662,0.805,3011.6,3010.7,0.06642555]
[1731173206972,0.805,3011.6,3010.8,3.0]
[1731173207167,0.805,3011.6,3009.5,0.8219]
[1731173207371,0.805,3011.6,3010.5,2.78826827]
[1731173207788,12.09859375,3012.3,3010.6,0.8219]
[1731173207995,0.7744,3012.2,3011.1,2.78826827]
[1731173208194,0.7744,3012.2,3010.8,2.78826827]
[1731173208569,0.7744,3012.2,3010.9,3.0]
[1731173211805,0.7744,3012.2,3010.8,0.06641905]
[1731173211971,0.7744,3012.2,3011.0,3.0]
[1731173214202,0.7744,3012.2,3010.5,0.7744]
[1731173214512,0.7744,3012.2,3010.8,3.55]
[1731173214821,0.7744,3012.2,3010.8,3.0]
[1731173215866,0.7744,3012.2,3010.8,2.78826827]
[1731173216071,0.7744,3012.2,3010.9,3.0]
[1731173217117,0.7808,3013.0,3011.6,3.0]
[1731173217279,0.7808,3012.8,3011.6,3.0]
[1731173217479,0.7808,3012.8,3011.0,1.63232997]
[1731173217480,0.01,3012.9,3011.0,0.8158]
[1731173217721,0.7808,3012.7,3011.3,3.0]
[1731173218373,0.7908,3012.7,3011.3,3.0]
[1731173218823,0.7808,3012.5,3011.0,3.0]
[1731173219022,0.7908,3012.5,3011.0,3.0]
[1731173219955,0.7908,3012.5,3010.8,0.55]
[1731173220270,0.7908,3012.5,3011.1,3.0]
[1731173223261,0.7808,3012.5,3011.4,3.0]
[1731173224463,0.7808,3012.5,3011.5,3.0]
[1731173225370,0.7808,3012.5,3011.1,2.78826827]
[1731173225546,0.7908,3012.5,3011.2,3.0]
[1731173226242,3.0,3012.5,3011.5,2.78826827]
[1731173226570,0.7808,3012.3,3011.5,2.78826827]
[1731173227666,0.7808,3012.3,3011.2,3.0]
[1731173227871,0.7808,3012.3,3011.3,2.78826827]
[1731173228069,0.7808,3012.3,3011.4,3.0]
[1731173229249,0.7808,3012.3,3011.3,3.0]
[1731173229454,0.82,3012.2,3011.3,3.0]
[1731173231835,0.82,3012.2,3011.5,2.78826827]
[1731173237176,0.82,3012.2,3011.9,3.0]
[1731173241002,0.82,3013.0,3012.1,3.06639241]
[1731173241157,0.82,3013.0,3012.1,0.06639241]
[1731173241359,0.04979761,3013.1,3012.8,0.55]
[1731173241662,0.82,3013.0,3012.7,2.78826827]
[1731173242595,0.04979761,3013.1,3012.7,2.78826827]
[1731173244159,0.04979761,3013.1,3012.5,3.33826827]
[1731173244387,0.04979761,3013.1,3012.6,3.0]
[1731173246973,0.03099761,3013.1,3012.6,3.0]
[1731173247702,0.80099761,3013.2,3012.6,3.0]
[1731173247885,0.80099761,3013.2,3012.5,0.55]
[1731173248087,0.80099761,3013.2,3012.4,0.55]
[1731173248264,0.80099761,3013.2,3012.5,2.78826827]
[1731173248569,0.80099761,3013.2,3012.6,3.55]
[1731173249004,0.80099761,3013.2,3012.6,0.55]
[1731173249204,0.80099761,3013.2,3012.7,3.0]
[1731173251435,0.78269761,3013.2,3012.7,3.0]
[1731173252293,0.78269761,3013.2,3012.0,0.8144]
[1731173252494,0.78269761,3013.2,3012.7,3.0]
[1731173252689,0.78269761,3013.2,3012.3,2.78826827]
[1731173252920,0.78269761,3013.2,3012.4,3.0]
[1731173255338,0.78269761,3013.2,3012.1,0.61638952]
[1731173255635,0.78269761,3013.2,3012.5,3.0]
[1731173256366,0.78269761,3013.2,3012.4,2.78826827]
[1731173257268,0.78269761,3013.2,3012.1,2.78826827]
[1731173257767,0.78269761,3013.2,3012.2,3.0]
[1731173259361,0.78269761,3013.2,3011.9,0.06639179]
[1731173259362,0.78269761,3013.2,3012.0,0.55]
[1731173259562,0.78269761,3013.2,3012.3,3.0]
[1731173262344,0.73269761,3013.2,3012.3,3.0]
[1731173264189,0.73269761,3013.2,3012.0,3.0]
[1731173264387,0.73269761,3013.2,3011.9,2.78826827]
[1731173264687,0.01,3013.0,3011.6,2.78826827]
[1731173264855,0.30696907,3012.9,3011.6,2.78826827]
[1731173265192,0.30696907,3012.8,3011.6,2.78826827]
[1731173265347,0.8056,3012.7,3011.6,2.78826827]
[1731173265549,0.8056,3012.6,3011.6,2.78826827]
[1731173266171,0.8056,3012.6,3011.3,2.78826827]
[1731173266695,0.8056,3012.6,3011.9,2.78826827]
[1731173267079,0.8056,3012.6,3011.6,2.78826827]
[1731173267279,0.8056,3012.6,3011.9,2.78826827]
[1731173268665,0.8056,3012.6,3012.0,3.0]
[1731173270192,0.8056,3012.6,3011.7,3.0]
[1731173270398,0.8056,3012.6,3011.4,3.0]
[1731173271102,0.8156,3012.6,3011.3,2.78826827]
[1731173271596,0.30655052,3012.5,3011.3,2.78826827]
[1731173271803,0.7586,3012.4,3011.3,2.78826827]
[1731173272001,0.7586,3012.4,3010.8,0.06641604]
[1731173272002,0.7586,3012.4,3011.5,2.78826827]
[1731173273705,0.7586,3012.4,3011.6,3.06640302]
[1731173275865,0.7586,3012.4,3011.8,2.78826827]
[1731173277405,0.7586,3012.4,3011.3,0.758]
[1731173277618,0.7586,3012.4,3011.4,0.55]
[1731173277900,0.7586,3012.4,3011.6,2.78826827]
[1731173278071,0.7586,3012.4,3011.4,0.55]
[1731173278281,0.7586,3012.4,3011.6,3.0]
[1731173278881,0.7586,3012.4,3011.0,0.758]
[1731173279080,0.7586,3012.4,3011.0,2.78826827]
[1731173279326,0.7686,3012.4,3011.0,2.78826827]
[1731173280127,0.7586,3012.4,3011.0,2.78826827]
[1731173280284,0.7686,3012.4,3011.0,2.78826827]
[1731173280486,0.7686,3012.4,3011.1,3.0]
[1731173281697,0.7586,3012.4,3011.1,3.0]
[1731173282096,0.30647656,3012.3,3011.1,3.0]
[1731173282318,0.7586,3012.2,3011.1,3.0]
[1731173283626,0.7586,3012.2,3011.0,2.78826827]
[1731173283831,0.7586,3012.2,3011.1,3.0]
[1731173287143,0.7586,3012.2,3011.0,2.78826827]
[1731173287144,0.7586,3012.2,3010.4,0.758]
[1731173287298,0.7586,3012.2,3009.6,0.01]
[1731173287299,0.7586,3012.0,3010.5,2.78826827]
[1731173287643,0.7586,3011.8,3010.5,2.78826827]
[1731173287799,0.7586,3011.8,3010.1,0.758]
[1731173288002,0.7586,3011.8,3009.9,0.39333663]
[1731173288004,0.7586,3011.3,3009.7,3.32]
[1731173288317,0.7586,3011.3,3009.8,2.78826827]
[1731173288695,0.7686,3011.3,3009.8,2.78826827]
[1731173288900,0.01,3011.0,3009.3,0.758]